fUSD/lending_fUSD_20240330
["ID","MTS","AMOUNT","RATE_DAILY","PERIOD"]
[321034460,1711804253185,-521.70469947,0.00041663,4]
[321034461,1711804253195,-500.0,0.00041663,4]
[321034462,1711804253204,-531.15860714,0.00041663,4]
[321034463,1711804253213,-500.0,0.00041663,4]
[321034464,1711804253222,-500.0,0.00041663,4]
[321034465,1711804253231,-500.0,0.00041663,4]
[321034466,1711804253240,-500.0,0.00041663,4]
[321034467,1711804253249,-500.0,0.00041663,4]
[321034468,1711804253258,-509.61452888,0.00041663,4]
[321034469,1711804253267,-500.0,0.00041663,4]
[321034470,1711804253276,-500.0,0.00041663,4]
[321034471,1711804253285,-500.0,0.00041663,4]
[321034472,1711804253295,-500.0,0.00041663,4]
[321034473,1711804253304,-500.0,0.00041663,4]
[321034474,1711804253313,-500.0,0.00041663,4]
[321034475,1711804253322,-500.0,0.00041663,4]
[321034476,1711804253331,-500.0,0.00041663,4]
[321034477,1711804253341,-500.0,0.00041663,4]
[321034478,1711804253350,-500.0,0.00041663,4]
[321034479,1711804253359,-509.34581779,0.00041663,4]
[321034480,1711804253369,-500.0,0.00041663,4]
[321034481,1711804253378,-500.0,0.00041663,4]
[321034482,1711804253387,-338.98059233,0.00041663,4]
[321034483,1711804253396,-500.0,0.00041663,4]
[321034484,1711804253405,-500.0,0.00041663,4]
[321034485,1711804253414,-500.0,0.00041663,4]
[321034486,1711804253423,-500.0,0.00041663,4]
[321034487,1711804253432,-500.0,0.00041663,4]
[321034488,1711804253444,-500.0,0.00041663,4]
[321034489,1711804253453,-500.0,0.00041663,4]
[321034490,1711804253461,-500.0,0.00041663,4]
[321034491,1711804253470,-500.0,0.00041663,4]
[321034492,1711804253479,-500.0,0.00041663,4]
[321034493,1711804253493,-500.0,0.00041663,4]
[321034494,1711804253502,-500.0,0.00041663,4]
[321034495,1711804253511,-504.29865734,0.00041663,4]
[321034496,1711804253523,-500.0,0.00041663,4]
[321034497,1711804253532,-500.0,0.00041663,4]
[321034498,1711804253543,-500.0,0.00041663,4]
[321034499,1711804253553,-500.0,0.00041663,4]
[321034500,1711804253563,-500.0,0.00041663,4]
[321034501,1711804253573,-500.0,0.00041663,4]
[321034502,1711804253582,-500.0,0.00041663,4]
[321034503,1711804253592,-226.08643337,0.00041663,4]
[321034504,1711804253601,-500.0,0.00041663,4]
[321034505,1711804253611,-500.0,0.00041663,4]
[321034506,1711804253621,-500.0,0.00041663,4]
[321034507,1711804253631,-529.04857023,0.00041663,4]
[321034508,1711804253641,-229.63462973,0.00041663,4]
[321034509,1711804253654,-500.0,0.00041663,4]
[321034510,1711804253664,-500.0,0.00041663,4]
[321034511,1711804253673,-500.0,0.00041663,4]
[321034512,1711804253682,-1000.0,0.00041663,5]
[321034513,1711804253691,-500.0,0.00041663,4]
[321034514,1711804253701,-500.0,0.00041663,4]
[321034515,1711804253710,-500.0,0.00041663,4]
[321034516,1711804253721,-500.0,0.00041663,4]
[321034517,1711804253731,-500.0,0.00041663,4]
[321034518,1711804253741,-500.0,0.00041663,4]
[321034519,1711804253751,-461.53963713,0.00041663,4]
[321034520,1711804253760,-500.0,0.00041663,4]
[321034521,1711804253770,-500.0,0.00041663,4]
[321034522,1711804253779,-529.1062462,0.00041663,4]
[321034523,1711804253788,-500.0,0.00041663,4]
[321034524,1711804253798,-500.0,0.00041663,4]
[321034525,1711804253808,-500.0,0.00041663,4]
[321034526,1711804253818,-500.0,0.00041663,4]
[321034527,1711804253828,-500.0,0.00041663,4]
[321034528,1711804253838,-500.0,0.00041663,4]
[321034529,1711804253847,-500.0,0.00041663,4]
[321034530,1711804253858,-500.0,0.00041663,4]
[321034531,1711804253867,-500.0,0.00041663,4]
[321034532,1711804253876,-500.0,0.00041663,4]
[321034533,1711804253885,-500.0,0.00041663,4]
[321034534,1711804253894,-500.0,0.00041663,4]
[321034535,1711804253904,-500.0,0.00041663,4]
[321034536,1711804253915,-500.0,0.00041663,4]
[321034537,1711804253924,-500.0,0.00041663,4]
[321034538,1711804253933,-500.0,0.00041663,4]
[321034539,1711804253942,-500.0,0.00041663,4]
[321034540,1711804253951,-500.0,0.00041663,4]
[321034541,1711804253960,-500.0,0.00041663,4]
[321034542,1711804253970,-500.0,0.00041663,4]
[321034543,1711804253979,-500.0,0.00041663,4]
[321034544,1711804253988,-500.0,0.00041663,4]
[321034545,1711804253997,-500.0,0.00041663,4]
[321034546,1711804254006,-500.0,0.00041663,4]
[321034547,1711804254015,-500.0,0.00041663,4]
[321034548,1711804254024,-500.0,0.00041663,4]
[321034549,1711804254033,-500.0,0.00041663,4]
[321034550,1711804254042,-500.0,0.00041663,4]
[321034551,1711804254051,-500.0,0.00041663,4]
[321034552,1711804254060,-637.9,0.00041663,4]
[321034553,1711804254069,-500.0,0.00041663,4]
[321034554,1711804254078,-500.0,0.00041663,4]
[321034555,1711804254087,-500.0,0.00041663,4]
[321034556,1711804254096,-500.0,0.00041663,4]
[321034557,1711804254105,-500.0,0.00041663,4]
[321034558,1711804254114,-500.0,0.00041663,4]
[321034559,1711804254125,-500.0,0.00041663,4]
[321034560,1711804254259,-565.31,0.00041663,4]
[321034561,1711804254270,-500.0,0.00041663,4]
[321034562,1711804254281,-500.0,0.00041663,4]
[321034563,1711804254290,-500.0,0.00041663,4]
[321034564,1711804254301,-500.0,0.00041663,4]
[321034565,1711804254310,-500.0,0.00041663,4]
[321034566,1711804254320,-500.0,0.00041663,4]
[321034567,1711804254330,-500.0,0.00041663,4]
[321034568,1711804254340,-500.0,0.00041663,4]
[321034569,1711804254350,-510.64897878,0.00041663,4]
[321034570,1711804254360,-500.0,0.00041663,4]
[321034571,1711804254370,-500.0,0.00041663,4]
[321034572,1711804254379,-1038.25,0.00041663,2]
[321034573,1711804254388,-500.0,0.00041663,4]
[321034574,1711804254398,-500.0,0.00041663,4]
[321034575,1711804254407,-500.0,0.00041663,4]
[321034576,1711804254417,-500.0,0.00041663,4]
[321034577,1711804254428,-500.0,0.00041663,4]
[321034578,1711804254438,-364.32618722,0.00041663,4]
[321034579,1711804254448,-500.0,0.00041663,4]
[321034580,1711804254458,-500.0,0.00041663,4]
[321034581,1711804254467,-500.0,0.00041663,4]
[321034582,1711804254479,-500.0,0.00041663,4]
[321034583,1711804254495,-524.79385647,0.00041663,4]
[321034584,1711804254505,-500.0,0.00041663,4]
[321034585,1711804254515,-500.0,0.00041663,4]
[321034586,1711804254527,-500.0,0.00041663,4]
[321034587,1711804254539,-500.0,0.00041663,4]
[321034588,1711804254550,-500.0,0.00041663,4]
[321034589,1711804254560,-500.0,0.00041663,4]
[321034590,1711804254570,-638.07,0.00041663,4]
[321034591,1711804254581,-500.0,0.00041663,4]
[321034592,1711804254590,-500.0,0.00041663,4]
[321034593,1711804254599,-500.0,0.00041663,4]
[321034594,1711804254608,-500.0,0.00041663,4]
[321034595,1711804254618,-500.0,0.00041663,4]
[321034596,1711804254627,-500.0,0.00041663,4]
[321034597,1711804254637,-500.0,0.00041663,4]
[321034598,1711804254647,-500.0,0.00041663,4]
[321034599,1711804254657,-500.0,0.00041663,4]
[321034600,1711804254667,-500.0,0.00041663,4]
[321034601,1711804254676,-500.0,0.00041663,4]
[321034602,1711804254686,-500.0,0.00041663,4]
[321034603,1711804254695,-500.0,0.00041663,4]
[321034604,1711804254706,-500.0,0.00041663,4]
[321034605,1711804254715,-500.0,0.00041663,4]
[321034606,1711804254725,-500.0,0.00041663,4]
[321034607,1711804254734,-500.0,0.00041663,4]
[321034608,1711804254743,-500.0,0.00041663,4]
[321034609,1711804254752,-500.0,0.00041663,4]
[321034610,1711804254762,-500.0,0.00041664,4]
[321034611,1711804254771,-507.23047919,0.00041664,4]
[321034612,1711804254780,-499.48620313,0.00041664,4]
[321034613,1711804254790,-325.68803425,0.00041664,4]
[321034614,1711804254799,-506.82062801,0.00041664,4]
[321034615,1711804254810,-500.0,0.00041664,4]
[321034616,1711804254821,-510.17593886,0.00041664,4]
[321034617,1711804254830,-500.0,0.00041664,4]
[321034618,1711804254840,-500.0,0.00041664,4]
[321034619,1711804254850,-500.0,0.00041664,4]
[321034620,1711804254860,-500.0,0.00041664,4]
[321034621,1711804254870,-500.0,0.00041664,4]
[321034622,1711804254880,-500.0,0.00041664,4]
[321034623,1711804254890,-500.0,0.00041664,4]
[321034624,1711804254900,-500.0,0.00041664,4]
[321034625,1711804254910,-500.0,0.00041664,4]
[321034626,1711804254920,-500.0,0.00041664,4]
[321034627,1711804254929,-500.0,0.00041664,4]
[321034628,1711804254939,-503.44,0.00041664,4]
[321034629,1711804254949,-500.0,0.00041664,4]
[321034630,1711804254959,-500.0,0.00041664,4]
[321034631,1711804254968,-500.0,0.00041664,4]
[321034632,1711804254977,-500.0,0.00041664,4]
[321034633,1711804254987,-500.0,0.00041664,4]
[321034634,1711804254996,-500.0,0.00041664,4]
[321034635,1711804255006,-698.21,0.00041664,4]
[321034636,1711804255016,-500.0,0.00041664,4]
[321034637,1711804255026,-500.0,0.00041664,4]
[321034638,1711804255035,-879.6956976,0.00041664,5]
[321034639,1711804255057,-120.3043024,0.00041664,5]
[321034640,1711804255067,-500.0,0.00041664,4]
[321034641,1711804255077,-500.0,0.00041664,4]
[321034642,1711804255086,-500.0,0.00041664,4]
[321034643,1711804255095,-500.0,0.00041664,4]
[321034644,1711804255104,-515.02,0.00041664,4]
[321034645,1711804255114,-500.0,0.00041664,4]
[321034646,1711804255123,-375.99755964,0.000417,15]
[321034647,1711804255135,-1924.00244036,0.000417,15]
[321034648,1711804255144,-1251.81920532,0.000417,15]
[321034649,1711804255160,-1148.18079468,0.000417,15]
[321034650,1711804255169,-600.0,0.00041788,30]
[321034651,1711804255178,-227.71920542,0.000418,15]
[321034652,1711804255624,-1946.25,0.000415,2]
[321034653,1711804255635,-522.21749652,0.000415,2]
[321034654,1711804255644,-18274.78353338,0.000415,2]
[321034655,1711804255655,-2572.28079458,0.000418,15]
[321034656,1711804255664,-3000.0,0.000418,15]
[321034657,1711804255674,-881.64955079,0.000418,4]
[321034658,1711804255683,-181.72170885,0.00041817,2]
[321034659,1711804255692,-2000.75,0.00041836,4]
[321034660,1711804255701,-1288.71,0.00041836,4]
[321034661,1711804255710,-920.26,0.00041836,4]
[321034662,1711804255719,-3815.71,0.00041836,4]
[321034663,1711804255729,-1385.22,0.00041836,4]
[321034664,1711804255738,-876.41,0.00041836,4]
[321034665,1711804255747,-2971.59,0.00041836,4]
[321034666,1711804255756,-1590.09,0.00041836,4]
[321034667,1711804255765,-1089.55460872,0.00041836,4]
[321034668,1711804255780,-1679.69539128,0.00041836,4]
[321034669,1711804255789,-926.54,0.00041836,4]
[321034670,1711804255798,-2991.36,0.00041836,4]
[321034671,1711804255807,-553.13522737,0.00041836,4]
[321034672,1711804255818,-1361.70161791,0.00041836,4]
[321034673,1711804257004,-502.10022434,0.00041094,4]
[321034674,1711804257043,-2629.62302131,0.00041094,4]
[321034675,1711804257056,-4966.18,0.00041095,4]
[321034676,1711804257071,-500.0,0.00041095,4]
[321034677,1711804257091,-506.48707908,0.00041332,4]
[321034678,1711804257105,-504.63846688,0.00041332,4]
[321034679,1711804257120,-500.0,0.00041332,4]
[321034680,1711804257136,-4966.18,0.00041369,4]
[321034681,1711804257153,-500.0,0.00041606,4]
[321034682,1711804257168,-4966.18,0.00041643,4]
[321034683,1711804257183,-1773.44315472,0.00041836,4]
[321034684,1711804257198,-500.0,0.00041836,4]
[321034685,1711804257212,-500.0,0.00041836,4]
[321034686,1711804257228,-500.0,0.00041836,4]
[321034687,1711804257243,-500.0,0.00041836,4]
[321034688,1711804257259,-2201.45,0.00041836,4]
[321034689,1711804257274,-1346.37,0.00041836,4]
[321034690,1711804257289,-1756.72,0.00041836,4]
[321034691,1711804257303,-500.0,0.00041873,4]
[321034692,1711804257318,-721.08,0.00041873,4]
[321034693,1711804257332,-739.03,0.00041873,4]
[321034694,1711804257347,-1056.53,0.00041873,4]
[321034695,1711804257361,-790.29,0.00041873,4]
[321034696,1711804257375,-667.38,0.00041873,4]
[321034697,1711804257389,-500.0,0.00041873,4]
[321034698,1711804257405,-3223.2,0.00041873,4]
[321034699,1711804257422,-12025.78,0.00041873,4]
[321034700,1711804257435,-3956.13,0.00041873,4]
[321034701,1711804257450,-586.32,0.00041873,4]
[321034702,1711804257465,-1038.65,0.00041873,4]
[321034703,1711804257479,-9439.99,0.00041873,4]
[321034704,1711804257497,-907.21,0.00041873,4]
[321034705,1711804257510,-3597.78,0.00041879,4]
[321034706,1711804257524,-2756.45,0.00041879,4]
[321034707,1711804257539,-500.0,0.00041879,4]
[321034708,1711804257554,-1063.58,0.00041879,4]
[321034709,1711804257575,-696.48,0.00041879,4]
[321034710,1711804257602,-2451.59,0.00041879,4]
[321034711,1711804257623,-2461.1,0.00041879,4]
[321034712,1711804257642,-500.0,0.00041879,4]
[321034713,1711804257660,-500.0,0.00041879,4]
[321034714,1711804257677,-690.32,0.00041879,4]
[321034715,1711804257693,-669.02,0.00041879,4]
[321034716,1711804257708,-4136.85,0.00041879,4]
[321034717,1711804257725,-500.0,0.0004188,4]
[321034718,1711804257742,-561.30470931,0.0004188,4]
[321034719,1711804257758,-500.0,0.0004188,4]
[321034720,1711804257773,-500.0,0.0004188,4]
[321034721,1711804257789,-289.13807247,0.0004188,4]
[321034722,1711804257804,-320.36466207,0.0004188,4]
[321034723,1711804257819,-279.80918589,0.0004188,4]
[321034724,1711804257835,-500.0,0.0004188,4]
[321034725,1711804257845,-500.0,0.0004188,4]
[321034726,1711804257855,-500.0,0.0004188,4]
[321034727,1711804257864,-594.79529461,0.0004188,4]
[321034728,1711804257873,-500.0,0.0004188,4]
[321034729,1711804257882,-500.0,0.0004188,4]
[321034730,1711804257891,-500.0,0.0004188,4]
[321034731,1711804257900,-500.0,0.0004188,4]
[321034732,1711804257910,-500.0,0.0004188,4]
[321034733,1711804257919,-500.0,0.0004188,4]
[321034734,1711804257929,-500.0,0.0004188,2]
[321034735,1711804257938,-500.0,0.0004188,4]
[321034736,1711804257947,-500.0,0.0004188,4]
[321034737,1711804257957,-500.0,0.0004188,4]
[321034738,1711804257966,-500.0,0.0004188,4]
[321034739,1711804257976,-500.0,0.0004188,4]
[321034740,1711804257985,-500.0,0.0004188,4]
[321034741,1711804257995,-500.0,0.0004188,4]
[321034742,1711804258004,-500.0,0.0004188,4]
[321034743,1711804258014,-500.0,0.0004188,4]
[321034744,1711804258023,-500.0,0.0004188,4]
[321034745,1711804258032,-500.0,0.0004188,4]
[321034746,1711804258042,-500.0,0.0004188,4]
[321034747,1711804258051,-508.97,0.0004188,4]
[321034748,1711804258061,-500.0,0.0004188,4]
[321034749,1711804258428,-500.0,0.0004188,4]
[321034750,1711804258455,-500.0,0.0004188,4]
[321034751,1711804258476,-500.0,0.0004188,4]
[321034752,1711804258490,-500.0,0.0004188,4]
[321034753,1711804258499,-222.16481618,0.0004188,4]
[321034754,1711804258509,-500.0,0.0004188,4]
[321034755,1711804258518,-500.0,0.0004188,4]
[321034756,1711804258527,-644.49,0.0004188,4]
[321034757,1711804258537,-500.0,0.0004188,4]
[321034758,1711804258547,-500.0,0.0004188,4]
[321034759,1711804258557,-305.21619715,0.0004188,4]
[321034760,1711804258568,-500.0,0.0004188,4]
[321034761,1711804258578,-500.0,0.0004188,4]
[321034762,1711804258589,-500.0,0.0004188,4]
[321034763,1711804258598,-519.58,0.0004188,4]
[321034764,1711804258608,-151.90955143,0.0004188,4]
[321034765,1711804258617,-500.0,0.0004188,4]
[321034766,1711804258626,-500.0,0.0004188,4]
[321034767,1711804258636,-500.0,0.0004188,4]
[321034768,1711804258645,-444.57876132,0.0004188,4]
[321034769,1711804258655,-500.0,0.0004188,4]
[321034770,1711804258665,-500.0,0.0004188,4]
[321034771,1711804258675,-500.0,0.0004188,4]
[321034772,1711804258684,-500.0,0.0004188,4]
[321034773,1711804258693,-500.0,0.0004188,4]
[321034774,1711804258702,-500.0,0.0004188,4]
[321034775,1711804258710,-500.0,0.0004188,4]
[321034776,1711804258720,-500.0,0.0004188,4]
[321034777,1711804258729,-500.0,0.0004188,4]
[321034778,1711804258738,-500.0,0.0004188,4]
[321034779,1711804258747,-500.0,0.0004188,4]
[321034780,1711804258756,-500.0,0.0004188,4]
[321034781,1711804258765,-642.7,0.0004188,4]
[321034782,1711804258774,-500.0,0.0004188,4]
[321034783,1711804258785,-563.08030804,0.0004188,4]
[321034784,1711804258794,-500.0,0.0004188,4]
[321034785,1711804258803,-500.0,0.0004188,4]
[321034786,1711804258813,-696.79,0.0004188,4]
[321034787,1711804258824,-500.0,0.0004188,4]
[321034788,1711804258834,-500.0,0.0004188,4]
[321034789,1711804258845,-500.0,0.0004188,4]
[321034790,1711804258856,-632.74047523,0.0004188,4]
[321034791,1711804258865,-500.0,0.0004188,4]
[321034792,1711804258874,-500.0,0.0004188,4]
[321034793,1711804258883,-500.0,0.0004188,4]
[321034794,1711804258893,-500.0,0.0004188,2]
[321034795,1711804258903,-257.03341359,0.0004188,4]
[321034796,1711804258913,-500.0,0.0004188,4]
[321034797,1711804258922,-500.0,0.0004188,4]
[321034798,1711804258931,-500.0,0.0004188,4]
[321034799,1711804258940,-500.0,0.0004188,4]
[321034800,1711804258949,-500.0,0.0004188,4]
[321034801,1711804258959,-500.0,0.0004188,4]
[321034802,1711804258968,-514.23024801,0.0004188,4]
[321034803,1711804258978,-500.0,0.0004188,4]
[321034804,1711804258987,-500.0,0.0004188,4]
[321034805,1711804258996,-500.0,0.0004188,4]
[321034806,1711804259005,-529.19,0.0004188,4]
[321034807,1711804259015,-500.0,0.0004188,4]
[321034808,1711804259025,-500.0,0.0004188,4]
[321034809,1711804259034,-500.0,0.0004188,4]
[321034810,1711804259043,-500.0,0.0004188,4]
[321034811,1711804259052,-500.0,0.0004188,4]
[321034812,1711804259061,-331.53938254,0.0004188,4]
[321034813,1711804259071,-571.44,0.0004188,4]
[321034814,1711804259080,-500.0,0.0004188,4]
[321034815,1711804259089,-500.0,0.0004188,4]
[321034816,1711804259098,-500.0,0.0004188,4]
[321034817,1711804259108,-500.0,0.0004188,4]
[321034818,1711804259117,-500.0,0.0004188,4]
[321034819,1711804259126,-500.0,0.0004188,4]
[321034820,1711804259136,-500.0,0.0004188,4]
[321034821,1711804259145,-500.0,0.0004188,4]
[321034822,1711804259157,-500.0,0.0004188,4]
[321034823,1711804259167,-500.0,0.0004188,4]
[321034824,1711804259177,-500.0,0.0004188,4]
[321034825,1711804259191,-500.0,0.0004188,4]
[321034826,1711804259201,-199.44647037,0.0004188,4]
[321034827,1711804259211,-500.0,0.0004188,4]
[321034828,1711804259220,-500.0,0.0004188,4]
[321034829,1711804259231,-500.0,0.0004188,4]
[321034830,1711804259241,-500.0,0.0004188,4]
[321034831,1711804259250,-500.0,0.0004188,4]
[321034832,1711804259261,-500.0,0.0004188,4]
[321034833,1711804259270,-500.0,0.0004188,4]
[321034834,1711804259280,-519.32890714,0.0004188,4]
[321034835,1711804259289,-500.0,0.0004188,4]
[321034836,1711804259299,-500.0,0.0004188,4]
[321034837,1711804259308,-500.0,0.0004188,4]
[321034838,1711804259317,-500.0,0.0004188,4]
[321034839,1711804259327,-500.0,0.0004188,4]
[321034840,1711804259336,-321.50335794,0.0004188,4]
[321034841,1711804259345,-500.0,0.0004188,2]
[321034842,1711804259354,-500.0,0.0004188,4]
[321034843,1711804259364,-500.0,0.0004188,4]
[321034844,1711804259373,-565.12,0.0004188,4]
[321034845,1711804259382,-500.0,0.0004188,4]
[321034846,1711804259392,-500.0,0.0004188,4]
[321034847,1711804259401,-500.0,0.0004188,4]
[321034848,1711804259410,-500.0,0.0004188,4]
[321034849,1711804259420,-500.0,0.0004188,4]
[321034850,1711804259430,-500.0,0.0004188,4]
[321034851,1711804259439,-530.90224763,0.0004188,4]
[321034852,1711804259448,-547.82918841,0.0004188,4]
[321034853,1711804259457,-500.0,0.0004188,4]
[321034854,1711804259466,-760.18,0.0004188,4]
[321034855,1711804259475,-500.0,0.0004188,4]
[321034856,1711804259488,-500.0,0.0004188,4]
[321034857,1711804259497,-500.0,0.0004188,4]
[321034858,1711804259506,-500.0,0.0004188,4]
[321034859,1711804259515,-500.0,0.0004188,4]
[321034860,1711804259525,-520.43064015,0.0004188,4]
[321034861,1711804259534,-160.61053367,0.0004188,4]
[321034862,1711804259543,-714.75,0.0004188,4]
[321034863,1711804259553,-500.0,0.0004188,4]
[321034864,1711804259562,-500.0,0.0004188,4]
[321034865,1711804259571,-500.0,0.0004188,4]
[321034866,1711804259581,-500.0,0.0004188,4]
[321034867,1711804259590,-500.0,0.0004188,4]
[321034868,1711804259599,-500.0,0.0004188,4]
[321034869,1711804259609,-500.0,0.0004188,4]
[321034870,1711804259619,-500.0,0.0004188,4]
[321034871,1711804259628,-234.2,0.0004188,4]
[321034872,1711804259637,-500.0,0.0004188,4]
[321034873,1711804259646,-500.0,0.0004188,4]
[321034874,1711804259655,-500.0,0.0004188,4]
[321034875,1711804259666,-500.0,0.0004188,4]
[321034876,1711804259675,-500.0,0.0004188,4]
[321034877,1711804259684,-523.81,0.0004188,4]
[321034878,1711804259693,-500.0,0.0004188,4]
[321034879,1711804259702,-500.0,0.0004188,4]
[321034880,1711804259711,-500.0,0.0004188,4]
[321034881,1711804259721,-500.0,0.0004188,4]
[321034882,1711804259730,-500.0,0.0004188,4]
[321034883,1711804259739,-366.72610713,0.0004188,4]
[321034911,1711805380040,150.57600231,0.00025484,2]
[321034919,1711805432445,-571.16145923,0.00032999,4]
[321034920,1711805432454,-3882.36503511,0.00032999,4]
[321034921,1711805432463,-250.0,0.00033,3]
[321034922,1711805432473,-300.0,0.00035,3]
[321034923,1711805432481,-572.6418,0.00036883,120]
[321034924,1711805432490,-2004.18141195,0.00036984,10]
[321034925,1711805432500,-350.0,0.00037,3]
[321034926,1711805432509,-550.2,0.00038017,2]
[321034927,1711805432518,-400.0,0.00039,3]
[321034928,1711805432527,-500.0,0.00039391,2]
[321034929,1711805432536,-379.1,0.00039395,2]
[321034930,1711805432544,-250.0,0.00039395,2]
[321034931,1711805432553,-14628.36,0.00039406,2]
[321034932,1711805432563,-284.16,0.00039439,2]
[321034933,1711805432572,-250.0,0.00039698,2]
[321034934,1711805432582,-162.97,0.00039748,15]
[321034935,1711805432591,-150.72,0.00039794,2]
[321034936,1711805432600,-358.0,0.000399,3]
[321034937,1711805432610,-150.0,0.000399,6]
[321034938,1711805432619,-152.0,0.0004,3]
[321034939,1711805432628,-19256.82422267,0.0004,2]
[321034940,1711805432637,-546.40226944,0.00040126,4]
[321034941,1711805432646,-159.51,0.00040127,2]
[321034942,1711805432656,-1000.0,0.00040137,2]
[321034943,1711805432666,-550.2,0.00040281,2]
[321034944,1711805432675,-995.37,0.00040292,2]
[321034945,1711805432684,-150.0,0.000404,6]
[321034946,1711805432693,-159.51,0.00040426,2]
[321034947,1711805432703,-159.51,0.00040724,2]
[321034948,1711805432712,-700.0,0.000408,14]
[321034949,1711805432721,-1274.67,0.00040885,10]
[321034950,1711805432730,-1062.23,0.00040885,10]
[321034952,1711805432739,-1734.4242795,0.00040894,4]
[321034954,1711805432748,-3690.2233,0.00040895,2]
[321034955,1711805432756,-5995.0174,0.00040895,2]
[321034957,1711805432765,-50111.29633788,0.00040895,2]
[321034961,1711805432859,-306.20467746,0.00040895,2]
[321034962,1711805432882,-12725.94174839,0.00040895,2]
[321034969,1711805438436,-270.08146098,0.00040895,2]
[321034970,1711805438448,-5626.76547529,0.00040895,2]
[321034971,1711805438457,-1000.0,0.00040895,2]
[321034972,1711805438466,-2500.0,0.00040895,2]
[321034973,1711805438475,-31737.44294215,0.000409,2]
[321034974,1711805438485,-150.0,0.000409,6]
[321034975,1711805438494,-1400.0,0.000409,14]
[321034976,1711805438504,-3617.91926444,0.00040905,4]
[321034977,1711805438513,-316.22,0.00040985,3]
[321034978,1711805438523,-159.54,0.00040985,2]
[321034979,1711805438532,-234.1119796,0.00040995,2]
[321034980,1711805438542,-647.29161558,0.00040995,2]
[321034981,1711805438551,-245467.8129,0.00040995,2]
[321034982,1711805438560,-4733.0,0.00041,2]
[321034983,1711805438570,-450.0,0.00041,3]
[321034984,1711805438579,-159.51,0.00041023,2]
[321034985,1711805438588,-159.54,0.00041085,2]
[321034986,1711805438598,-424.34,0.00041085,2]
[321034987,1711805438606,-424.34,0.00041085,2]
[321034988,1711805438615,-424.34,0.00041085,2]
[321034989,1711805438625,-184.48840092,0.00041085,2]
[321034990,1711805438634,-674.86838058,0.00041092,2]
[321034991,1711805438644,-500.0,0.00041095,4]
[321034992,1711805438653,-500.0,0.00041095,4]
[321034993,1711805438662,-515.3,0.00041095,4]
[321034994,1711805438671,-500.0,0.00041095,4]
[321034995,1711805438681,-500.0,0.00041095,4]
[321034996,1711805438699,-434.09817101,0.00041095,4]
[321034997,1711805438710,-500.0,0.00041095,4]
[321034998,1711805438720,-447.02331554,0.00041095,4]
[321034999,1711805438729,-500.0,0.00041095,4]
[321035000,1711805438739,-500.0,0.00041095,4]
[321035001,1711805438748,-500.0,0.00041095,4]
[321035002,1711805438758,-506.71409682,0.00041095,4]
[321035003,1711805438767,-500.0,0.00041095,4]
[321035004,1711805438777,-500.0,0.00041095,4]
[321035006,1711805438786,-500.0,0.00041095,4]